bitfinex/quotes_ETHUSD_20241104
["timestamp","ask_amount","ask_price","bid_price","bid_amount"]
[1730729788084,4.05798,2464.3,2464.0,0.99706009]
[1730729788282,4.05798,2464.3,2464.0,0.7661]
[1730729789230,4.05798,2464.3,2464.0,0.99707634]
[1730729789561,2.53727367,2464.6,2464.0,0.99707634]
[1730729789562,4.05811,2464.2,2464.0,0.99707634]
[1730729789840,0.03559122,2464.1,2463.8,5.26412114]
[1730729790205,4.09387122,2464.1,2463.8,1.20536114]
[1730729790400,0.03559122,2464.1,2463.8,1.20536114]
[1730729790605,0.03559122,2464.1,2463.8,5.26411114]
[1730729792947,4.09387122,2464.1,2463.8,1.20536114]
[1730729793126,0.03559122,2464.1,2463.8,1.20536114]
[1730729793323,0.03559122,2464.1,2463.8,5.26410114]
[1730729794225,0.03559122,2464.1,2463.9,0.23140812]
[1730729794536,0.03559122,2464.1,2463.8,5.26410114]
[1730729794707,0.03559122,2464.1,2463.9,0.2314066]
[1730729794904,0.03559122,2464.1,2463.8,9.32280114]
[1730729795105,0.03559122,2464.1,2463.9,0.23140415]
[1730729795313,0.03559122,2464.1,2464.0,0.23140415]
[1730729796805,4.05781,2464.4,2464.0,4.28980415]
[1730729797017,4.05781,2464.4,2464.1,0.23140415]
[1730729797229,4.89663953,2464.5,2464.1,0.23140415]
[1730729797230,0.83892953,2464.5,2464.3,0.7792]
[1730729797432,0.0614935,2464.6,2464.4,4.05763]
[1730729797851,0.0614935,2464.6,2464.5,0.23163756]
[1730729798469,0.0614935,2464.6,2464.5,4.28924756]
[1730729798666,0.0614935,2464.6,2464.5,0.23163756]
[1730729799271,0.0614935,2464.6,2464.5,4.28924756]
[1730729799471,0.0614935,2464.6,2464.5,0.23163756]
[1730729799622,0.0614935,2464.6,2464.5,4.37039]
[1730729799825,0.0614935,2464.6,2464.5,0.23163756]
[1730729800663,0.0614935,2464.6,2464.3,4.83708]
[1730729800833,0.0614935,2464.6,2464.4,0.23157449]
[1730729801178,0.0614935,2464.6,2464.5,0.23157449]
[1730729801336,0.0614935,2464.6,2464.3,5.20759759]
[1730729801664,0.0614935,2464.6,2464.4,4.37040012]
[1730729801823,0.0614935,2464.6,2464.5,0.23156235]
[1730729802024,0.0614935,2464.6,2464.5,4.28917235]
[1730729802939,0.0614935,2464.6,2464.5,5.17041201]
[1730729803339,0.0614935,2464.6,2464.5,8.54084954]
[1730729803570,0.0614935,2464.6,2464.5,8.45970988]
[1730729803727,0.0614935,2464.6,2464.5,9.00970988]
[1730729805440,0.0614935,2464.6,2464.5,8.40771]
[1730729805799,0.0614935,2464.6,2464.5,8.45927838]
[1730729805997,0.0614935,2464.6,2464.5,7.85771]
[1730729806283,0.0614935,2464.6,2464.5,8.45929954]
[1730729807388,0.0614935,2464.6,2464.5,8.45907032]
[1730729808487,0.0614935,2464.6,2464.5,7.85771]
[1730729808650,0.0614935,2464.6,2464.5,8.54005686]
[1730729808851,0.0614935,2464.6,2464.5,8.45892722]
[1730729809492,0.0614935,2464.6,2464.5,8.45893945]
[1730729810409,0.0614935,2464.6,2464.5,8.45889722]
[1730729810567,0.0614935,2464.6,2464.5,8.08894526]
[1730729814469,0.0614935,2464.6,2464.5,11.95862001]
[1730729815203,0.0614935,2464.6,2464.5,12.32845924]
[1730729815975,0.0614935,2464.6,2464.5,8.08894526]
[1730729818714,0.0614935,2464.6,2464.5,7.28884526]
[1730729819016,0.0614935,2464.6,2464.4,4.0577]
[1730729819422,0.0614935,2464.6,2464.3,7.87735]
[1730729819625,0.0614935,2464.6,2464.3,7.05785]
[1730729819825,0.0614935,2464.6,2464.4,4.05776]
[1730729820990,0.0614935,2464.6,2464.2,1.21114614]
[1730729821236,4.05763,2464.5,2464.3,0.23120808]
[1730729821383,0.7539,2464.4,2464.2,4.47962614]
[1730729821589,0.8514935,2464.6,2464.3,4.2891783]
[1730729821791,0.8514935,2464.6,2464.3,4.05794]
[1730729821989,0.0614935,2464.6,2464.5,4.05761]
[1730729822218,0.0614935,2464.6,2464.5,4.28887562]
[1730729823352,0.0614935,2464.6,2464.5,12.067885]
[1730729823633,0.0614935,2464.6,2464.5,12.91691743]
[1730729824388,0.0614935,2464.6,2464.5,12.90691743]
[1730729824583,0.0614935,2464.6,2464.5,12.91691743]
[1730729825036,0.0614935,2464.6,2464.5,13.08549811]
[1730729825335,0.0614935,2464.6,2464.5,13.08549152]
[1730729825708,0.0614935,2464.6,2464.5,14.84136959]
[1730729826014,0.0614935,2464.6,2464.5,14.07136282]
[1730729826214,0.8076,2465.5,2464.9,0.7889]
[1730729826417,0.8076,2465.5,2465.0,4.42687354]
[1730729826593,0.8076,2465.5,2465.2,4.05646]
[1730729826789,0.8076,2465.5,2465.3,0.23133483]
[1730729826990,4.86359,2465.5,2465.1,4.05661]
[1730729827185,0.8076,2465.5,2465.2,0.60167812]
[1730729827389,4.82525,2465.4,2465.0,0.37031297]
[1730729827631,4.0564,2465.3,2465.1,0.23141605]
[1730729827816,4.0564,2465.3,2465.2,0.23141605]
[1730729828522,0.769,2465.4,2465.2,0.23141605]
[1730729828734,0.769,2465.4,2465.0,4.13777609]
[1730729828735,0.769,2465.4,2465.0,4.42690973]
[1730729828889,0.769,2465.4,2465.1,0.23141664]
[1730729829086,4.82521,2465.4,2465.2,0.23141664]
[1730729829317,4.05662,2465.2,2464.9,0.37027673]
[1730729829537,4.05662,2465.2,2465.0,0.23141918]
[1730729829742,4.82522,2465.4,2465.0,4.05668]
[1730729830031,4.82522,2465.4,2465.1,0.23141541]
[1730729830233,4.82522,2465.4,2465.0,4.05668]
[1730729830404,4.82522,2465.4,2465.1,0.23140692]
[1730729830589,4.0564,2465.3,2464.9,3.0]
[1730729830789,4.0564,2465.3,2465.0,0.23140129]
[1730729831094,0.769,2465.4,2465.1,0.0811287]
[1730729831399,0.769,2465.4,2465.1,4.1376387]
[1730729831824,4.86929,2465.6,2465.2,4.28785318]
[1730729832028,0.8134,2465.6,2465.3,0.23141318]
[1730729832246,0.8134,2465.6,2465.3,4.0562]
[1730729832986,0.8134,2465.6,2465.4,0.23137622]
[1730729833187,0.8134,2465.6,2465.2,4.42664939]
[1730729833404,0.8134,2465.6,2465.3,0.23138137]
[1730729833598,0.8134,2465.6,2465.2,4.05643]
[1730729833831,0.8134,2465.6,2465.3,0.23137457]
[1730729834134,0.8134,2465.6,2465.2,4.05643]
[1730729834336,0.8134,2465.6,2465.3,0.23134776]
[1730729834541,0.8134,2465.6,2465.2,4.05643]
[1730729834774,0.84130943,2465.8,2465.4,4.05611]
[1730729834952,0.0614935,2465.9,2465.6,4.05574]
[1730729835123,0.0614935,2465.9,2465.7,0.0810994]
[1730729835643,0.0614935,2465.9,2465.6,7.92539475]
[1730729835859,0.0614935,2465.9,2465.7,4.05556]
[1730729836064,0.0614935,2465.9,2465.8,0.0810991]
[1730729836231,0.0614935,2465.9,2465.8,4.1365691]
[1730729837022,0.0614935,2465.9,2465.8,0.0810991]
[1730729837224,0.0614935,2465.9,2465.8,4.1365691]
[1730729837427,0.0614935,2465.9,2465.8,0.0810991]
[1730729837644,0.0614935,2465.9,2465.8,4.1365691]
[1730729837838,0.0614935,2465.9,2465.8,0.0810991]
[1730729838037,0.0614935,2465.9,2465.8,4.1365691]
[1730729838860,0.0614935,2465.9,2465.7,4.05553]
[1730729839033,0.0614935,2465.9,2465.8,4.05547]
[1730729840271,0.0614935,2465.9,2465.7,7.05561]
[1730729840478,0.8761935,2465.9,2465.5,7.82489]
[1730729840777,4.05554,2465.8,2465.3,4.05628]
[1730729840926,4.05549,2465.8,2465.4,4.28682218]
[1730729841262,4.05549,2465.8,2465.4,4.05603]
[1730729841562,4.05549,2465.8,2465.3,4.0562]
[1730729841763,4.05549,2465.8,2465.4,0.23077147]
[1730729842069,4.05549,2465.8,2465.4,3.23077147]
[1730729842236,4.05549,2465.8,2465.4,3.0]
[1730729842855,4.05549,2465.8,2465.4,4.05612]
[1730729843367,4.9315135,2465.9,2465.4,4.05612]
[1730729843530,4.9315135,2465.9,2465.5,4.13704796]
[1730729843730,0.8761935,2465.9,2465.5,0.08110796]
[1730729844069,4.9315135,2465.9,2465.5,0.08110796]
[1730729844433,4.0555,2465.8,2465.5,0.08110796]
[1730729844635,4.0555,2465.8,2465.4,4.056]
[1730729844838,4.0555,2465.8,2465.5,0.08110887]
[1730729845737,0.8761935,2465.9,2465.5,4.96034887]
[1730729845973,0.8761935,2465.9,2465.5,0.90450887]
[1730729846138,4.1168735,2465.9,2465.5,0.90450887]
[1730729846934,0.0614935,2465.9,2465.5,0.90450887]
[1730729847156,0.0614935,2465.9,2465.5,5.19117619]
[1730729847488,4.1168335,2465.9,2465.5,4.96037887]
[1730729847872,0.0614935,2465.9,2465.5,4.96037887]
[1730729848693,0.0614935,2465.9,2465.5,4.96046887]
[1730729848894,0.0614935,2465.9,2465.6,4.05579]
[1730729849193,0.0614935,2465.9,2465.7,4.05556]
[1730729849707,0.0614935,2465.9,2465.8,4.05547]
[1730729849887,0.0614935,2465.9,2465.8,4.89006533]
[1730729850112,0.0614935,2465.9,2465.8,4.80897]
[1730729850749,0.0614935,2465.9,2465.8,8.03989295]
[1730729851295,0.0614935,2465.9,2465.8,7.80897]
[1730729851790,0.0614935,2465.9,2465.8,8.95954981]
[1730729852305,0.0614935,2465.9,2465.8,8.96954981]
[1730729852799,0.0614935,2465.9,2465.8,8.95954981]
[1730729855203,0.0614935,2465.9,2465.8,8.95979118]
[1730729856124,0.0614935,2465.9,2465.8,5.40979118]
[1730729856320,0.0614935,2465.9,2465.8,0.60075011]
[1730729856535,0.0614935,2465.9,2465.8,0.23107823]
[1730729857335,0.0614935,2465.9,2465.8,4.28653852]
[1730729857868,0.8632935,2465.9,2465.8,0.23106852]
[1730729858153,0.8632935,2465.9,2465.4,3.0]
[1730729858154,0.8632935,2465.9,2465.7,0.23108275]
[1730729858355,4.9186135,2465.9,2465.6,0.23110121]
[1730729858558,4.9186135,2465.9,2465.4,4.42595127]
[1730729858559,4.05548,2465.8,2465.4,4.42595127]
[1730729858761,4.05548,2465.8,2465.5,0.23113172]
[1730729858957,4.05548,2465.8,2465.6,0.23113172]
[1730729859162,4.05548,2465.8,2465.4,4.42595127]
[1730729859456,4.05548,2465.8,2465.5,0.23114582]
[1730729859640,0.8189,2465.5,2465.3,0.79290138]
[1730729859818,0.8189,2465.5,2465.4,0.23122282]
[1730729862150,4.87487,2465.5,2465.4,0.23122282]
[1730729862353,4.87487,2465.5,2465.3,0.42307011]
[1730729862354,4.05613,2465.4,2465.3,0.42307011]
[1730729862523,4.94923,2465.4,2465.3,0.42307011]
[1730729862724,4.05655,2465.2,2464.7,4.82123]
[1730729863022,4.87555,2465.1,2465.0,0.42284177]
[1730729863770,4.05695,2464.9,2464.8,0.2313031]
[1730729863922,4.05728,2464.8,2464.6,0.23133949]
[1730729864124,4.05745,2464.6,2464.5,0.42264204]
[1730729864858,4.05778,2464.4,2464.3,0.23135943]
[1730729865036,4.83368,2464.4,2464.0,0.65404191]
[1730729865238,4.05811,2464.2,2464.1,0.23135943]
[1730729865541,4.05827,2464.1,2464.0,0.42268248]
[1730729865852,5.78787643,2464.6,2463.7,0.42272713]
[1730729865853,4.86522,2463.9,2463.7,0.42272713]
[1730729866055,0.8066,2463.9,2463.7,0.42272713]
[1730729867826,4.86521,2463.9,2463.7,0.42272713]
[1730729868245,4.05877,2463.8,2463.7,0.42272713]
[1730729868973,4.86521,2463.9,2463.7,0.42272713]
[1730729870279,0.7916,2464.4,2463.7,0.42272713]
[1730729870432,4.05833,2464.1,2463.7,0.42272713]
[1730729870981,0.7764,2464.2,2463.7,0.42272713]
[1730729871271,4.05844,2464.0,2463.7,0.42272713]
[1730729871471,4.05877,2463.8,2463.7,0.42272713]
[1730729871871,4.05844,2464.0,2463.7,0.42272713]
[1730729872407,4.05863,2463.9,2463.7,0.42272713]
[1730729872903,4.870337,2463.9,2463.7,0.42272713]
[1730729873500,0.8224,2463.8,2463.7,0.42272713]
[1730729878159,4.84766,2464.0,2463.7,0.42272713]
[1730729878359,4.05873,2463.9,2463.7,0.42272713]
[1730729879265,4.05877,2463.8,2463.7,0.42272713]
[1730729879592,4.94944,2463.8,2463.7,0.42272713]
[1730729879777,4.05935,2463.5,2463.0,4.06]
[1730729879985,4.05935,2463.5,2463.2,0.42233685]
[1730729880304,4.84825,2463.7,2463.2,4.48206685]
[1730729880517,4.84825,2463.7,2463.2,0.42233685]
[1730729880805,4.05922,2463.6,2463.2,0.42233685]
[1730729881791,5.422142,2463.7,2463.2,4.48207685]
[1730729881996,5.422142,2463.7,2463.2,0.42233685]
[1730729882207,4.84825,2463.7,2463.3,4.05959]
[1730729882597,4.83659,2463.9,2463.4,4.05934]
[1730729882912,0.7779,2463.9,2463.4,4.14051935]
[1730729883109,4.05828,2464.1,2463.7,4.05892]
[1730729883420,4.83618,2464.1,2463.7,4.05892]
[1730729883643,4.05852,2464.0,2463.5,4.05926]
[1730729883775,4.05852,2464.0,2463.5,4.05915]
[1730729883978,4.05861,2463.9,2463.5,4.05915]
[1730729885076,4.05845,2464.0,2463.5,4.05912]
[1730729885918,4.05845,2464.0,2463.6,4.05909]
[1730729886388,4.05819,2464.2,2463.7,0.7993]
[1730729886592,4.84806,2464.3,2463.9,4.05852]
[1730729887413,8.90615,2464.3,2463.8,4.05868]
[1730729887617,8.90615,2464.3,2463.8,4.13984592]
[1730729888199,4.84806,2464.3,2463.8,4.13984592]
[1730729889215,4.05813,2464.2,2463.8,4.13984592]
[1730729889435,4.05827,2464.1,2463.9,0.23061572]
[1730729889722,0.890619,2464.2,2463.5,0.369071]
[1730729889723,4.05871,2463.9,2463.5,0.369071]
[1730729889923,4.05896,2463.7,2463.6,0.23066115]
[1730729890130,4.05896,2463.7,2463.4,0.36907559]
[1730729890333,0.7885,2463.8,2463.5,0.23067147]
[1730729890531,4.05937,2463.5,2463.4,0.36951287]
[1730729890824,4.05937,2463.5,2463.3,0.42266263]
[1730729891028,4.05904,2463.7,2463.4,0.2309419]
[1730729891271,8.11812,2463.7,2463.5,0.2309419]
[1730729891455,0.7885,2463.8,2463.6,0.2309419]
[1730729891635,4.84733,2463.8,2463.7,0.2309419]
[1730729891830,4.05822,2464.2,2463.7,0.2309419]
[1730729892034,0.7885,2464.0,2463.8,0.2309419]
[1730729892246,0.7885,2464.0,2463.9,0.2309419]
[1730729892834,4.84694,2464.0,2463.9,0.2309419]
[1730729893463,4.84694,2464.0,2463.9,0.60151355]
[1730729893851,4.84694,2464.0,2463.6,4.05902]
[1730729894051,0.7885,2464.0,2463.7,4.05892]
[1730729894258,4.84707,2464.0,2463.7,0.60217133]
[1730729894435,4.84707,2464.0,2463.5,4.05919]
[1730729894436,0.7885,2464.0,2463.8,0.60217133]
[1730729894636,4.05834,2464.1,2463.9,0.60217133]
[1730729894976,4.05834,2464.1,2464.0,0.37057383]
[1730729895134,0.8112,2464.2,2464.0,0.60217133]
[1730729895329,0.8112,2464.2,2464.1,0.60217133]
[1730729895977,4.86931,2464.2,2464.1,0.60217133]
[1730729896670,5.762042,2464.2,2464.1,0.2315975]
[1730729896966,5.762042,2464.2,2464.1,0.60254884]
[1730729897734,5.762042,2464.2,2464.1,0.2315975]
[1730729898973,5.762042,2464.2,2464.1,0.60253414]
[1730729899180,5.762042,2464.2,2464.1,0.2315975]
[1730729901104,5.762042,2464.2,2464.1,0.23182643]
[1730729902479,4.950842,2464.2,2464.1,0.23182643]
[1730729902684,4.05922,2463.6,2463.4,0.42255906]
[1730729902972,4.05922,2463.6,2463.5,0.60282392]
[1730729902973,4.88912,2463.6,2463.5,0.60282392]
[1730729903544,0.8299,2463.6,2463.5,0.60282392]
[1730729903740,4.0591,2463.6,2463.5,0.60282392]
[1730729904451,4.0591,2463.6,2463.4,0.42255906]
[1730729904684,4.0591,2463.6,2463.5,0.60270463]
[1730729908102,4.0591,2463.6,2463.5,0.60254197]
[1730729908401,4.0591,2463.6,2463.2,4.05975]
[1730729908602,4.0591,2463.6,2463.3,0.60249909]
[1730729908801,4.0591,2463.6,2463.2,4.05975]
[1730729908802,4.0591,2463.6,2463.4,0.60249909]
[1730729909004,4.05896,2463.7,2463.1,5.28133003]
[1730729909005,4.05926,2463.5,2463.1,5.28133003]
[1730729909213,4.05926,2463.5,2463.2,0.60249555]
[1730729909382,4.05926,2463.5,2463.3,0.60249555]
[1730729909579,4.0591,2463.6,2463.4,0.60249555]
[1730729909796,4.0591,2463.6,2463.5,0.60249555]
[1730729910442,4.89465935,2463.9,2463.5,0.60249555]
[1730729910737,0.83598935,2464.0,2463.8,4.05877]
[1730729910943,0.83598935,2464.0,2463.9,0.60249555]
[1730729911122,4.89442935,2464.0,2463.9,0.60249555]
[1730729911313,4.89442935,2464.0,2463.9,0.23085068]
[1730729911518,4.87163,2463.9,2463.4,4.85405]
[1730729911853,0.84361979,2463.8,2463.5,0.37075227]
[1730729912145,4.90248979,2463.8,2463.6,0.37075227]
[1730729912349,4.90254979,2463.7,2463.2,4.05968]
[1730729912509,0.84361979,2463.7,2463.3,4.4302755]
[1730729912861,4.90272979,2463.6,2463.4,0.3708055]
[1730729913065,4.88586,2463.5,2463.1,1.21745003]
[1730729913344,4.88586,2463.5,2463.2,0.37078929]
[1730729913549,5.72947979,2463.5,2463.3,0.37078929]
[1730729913852,4.88586,2463.5,2463.4,0.37078929]
[1730729914139,5.67061801,2463.5,2463.1,1.21745003]
[1730729914338,5.67061801,2463.5,2463.2,0.37076446]
[1730729914339,6.5142378,2463.5,2463.2,0.37076446]
[1730729914544,6.5142378,2463.5,2463.3,0.37076446]
[1730729914747,6.5142378,2463.5,2463.1,1.21745003]
[1730729914942,2.4549778,2463.5,2463.2,0.37072977]
[1730729915108,4.83627518,2463.4,2463.1,1.21745003]
[1730729915307,4.83627518,2463.4,2463.2,0.37071658]
[1730729915540,4.83627518,2463.4,2463.1,1.21745003]
[1730729915711,4.83627518,2463.4,2463.2,0.37068141]
[1730729915912,4.83627518,2463.4,2463.1,1.21745003]
[1730729916246,4.83627518,2463.4,2463.2,0.37069773]
[1730729916451,4.83627518,2463.4,2463.1,1.21745003]
[1730729916621,0.77681518,2463.4,2463.2,0.37065406]
[1730729916821,0.77681518,2463.4,2463.1,5.27736003]
[1730729917024,6.5142678,2463.5,2463.2,0.37065145]
[1730729917241,6.5142678,2463.5,2463.1,5.27736003]
[1730729917753,5.6876678,2463.5,2463.2,0.37065945]
[1730729917956,5.6876678,2463.5,2463.1,5.27736003]
[1730729918552,4.90307979,2463.4,2463.1,0.42275003]
[1730729918858,6.75659097,2463.3,2463.1,0.42275003]
[1730729921308,4.05975,2463.2,2463.1,0.42275003]
[1730729921516,6.75652097,2463.3,2463.1,0.42275003]
[1730729921853,2.69693097,2463.3,2463.1,0.42275003]
[1730729922010,4.90305979,2463.4,2463.1,0.42275003]
[1730729922211,0.84361979,2463.4,2463.2,0.796]
[1730729923322,0.84361979,2463.5,2463.2,4.85574]
[1730729923526,0.84361979,2463.5,2463.3,0.23161633]
[1730729923747,0.84361979,2463.5,2463.2,4.85574]
[1730729923956,4.05943,2463.4,2463.3,0.23161621]
[1730729924122,4.05959,2463.3,2463.1,0.42275003]
[1730729924450,4.05959,2463.3,2463.2,0.23162609]
[1730729924666,4.90320979,2463.3,2463.1,0.42275003]
[1730729924955,4.90336979,2463.2,2462.8,4.82672]
[1730729925154,0.84361979,2463.2,2462.9,0.23163663]
[1730729925462,0.84361979,2463.2,2462.8,4.82672]
[1730729925463,4.85052,2463.1,2463.0,0.42274823]
[1730729925624,2.04458403,2463.1,2462.5,0.37067244]
[1730729925813,4.9035719,2462.9,2462.6,0.23165923]
[1730729926016,4.9035719,2462.9,2462.7,0.23165923]
[1730729926213,4.06049,2462.8,2462.4,5.25016169]
[1730729926416,4.9036619,2462.8,2462.4,1.18921169]
[1730729926728,4.06049,2462.8,2462.5,0.23170861]
[1730729926922,5.16003552,2462.8,2462.4,5.62079363]
[1730729927127,5.16003552,2462.8,2462.5,0.2315823]
[1730729927355,5.16003552,2462.8,2462.4,5.25024169]
[1730729927559,4.06089,2462.6,2462.4,0.42281169]
[1730729927776,4.06091,2462.5,2462.1,0.37044902]
[1730729928075,4.06157,2462.1,2461.8,0.79321789]
[1730729928219,4.06157,2462.1,2461.9,0.23154709]
[1730729928554,4.06157,2462.1,2461.8,0.42276887]
[1730729928727,4.06157,2462.1,2461.9,0.23133537]
[1730729929055,4.0614,2462.2,2461.8,0.42276887]
[1730729929267,4.54527,2462.1,2461.8,0.42276887]
[1730729929568,4.06174,2462.0,2461.7,5.42475548]
[1730729930263,4.06159,2462.1,2461.7,5.42475548]
[1730729931417,4.0614,2462.2,2461.7,5.42475548]
[1730729931911,4.06164,2462.1,2461.7,9.48696548]
[1730729932565,4.06143,2462.2,2461.7,9.48688548]
[1730729932765,5.032398,2462.2,2461.7,5.42475548]
[1730729932977,4.06157,2462.1,2461.7,9.48694548]
[1730729933278,4.06142,2462.2,2461.8,4.06205]
[1730729933565,4.06165,2462.1,2461.7,9.48697548]
[1730729933921,4.06165,2462.1,2461.7,5.42475548]
[1730729934469,8.12291,2462.2,2461.7,9.48685548]
[1730729934769,8.12289,2462.2,2461.7,9.48685548]
[1730729934944,4.0614,2462.2,2461.7,9.48685548]
[1730729935137,4.83606,2462.3,2461.8,4.0619]
[1730729935331,5.725789,2462.3,2461.8,4.0619]
[1730729935665,4.06147,2462.2,2461.8,4.0619]
[1730729937057,8.94489,2462.5,2462.0,4.06161]
[1730729937369,4.06133,2462.3,2461.9,4.82648]
[1730729937676,4.06157,2462.1,2461.7,1.18464285]
[1730729937862,4.06181,2462.0,2461.7,1.18464285]
[1730729938059,4.06181,2462.0,2461.7,0.42234285]
[1730729938231,4.86173,2462.1,2461.7,4.48457285]
[1730729939433,4.06126,2462.3,2461.8,4.06206]
[1730729939637,4.06146,2462.2,2461.8,4.06206]
[1730729940049,4.06125,2462.3,2461.9,4.06177]
[1730729940287,4.86953,2462.4,2461.9,4.86617]
[1730729940493,0.8084,2462.4,2461.9,4.86617]
[1730729940662,4.06076,2462.6,2462.1,4.06141]
[1730729940988,4.86907,2462.7,2462.3,0.8044]
[1730729941232,1.40526155,2462.7,2462.3,0.8044]
[1730729941482,4.06043,2462.8,2462.3,4.86557]
[1730729941696,4.06068,2462.7,2462.3,0.8044]
[1730729942047,4.06041,2462.8,2462.3,4.86563]
[1730729942260,8.12092,2462.8,2462.4,4.06105]
[1730729942458,4.06041,2462.8,2462.3,4.86563]
[1730729942665,4.06041,2462.8,2462.3,8.92675]
[1730729943060,8.12098,2462.8,2462.3,4.86552]
[1730729943271,9.013918,2462.8,2462.3,4.86552]
[1730729943480,4.953348,2462.8,2462.3,4.86552]
[1730729943800,0.7733,2462.6,2461.9,0.773]
[1730729944004,0.7733,2462.6,2461.9,5.06560651]
[1730729944005,8.12235,2462.4,2461.9,5.06560651]
[1730729944157,8.12235,2462.4,2461.9,4.83489]
[1730729944362,4.06113,2462.4,2462.0,4.06169]
[1730729944797,4.06124,2462.3,2461.9,0.773]
[1730729945006,4.06142,2462.2,2461.8,4.71575409]
[1730729945209,4.467712,2462.1,2461.8,0.42294416]
[1730729945684,4.06176,2462.0,2461.8,0.42294416]
[1730729946202,4.06176,2462.0,2461.7,0.23078872]
[1730729946203,4.06176,2462.0,2461.6,4.29308872]
[1730729946409,4.06204,2461.9,2461.6,0.42246757]
[1730729946618,4.06204,2461.9,2461.6,0.65331989]
[1730729947113,4.467732,2462.1,2461.7,4.0622]
[1730729947269,4.06173,2462.0,2461.6,4.48483757]
[1730729947611,4.8604,2462.2,2461.7,4.06222]
[1730729947914,4.54768,2462.1,2461.7,4.06222]
[1730729948219,0.48604,2462.1,2461.7,4.06222]
[1730729948403,0.48604,2462.1,2461.8,4.06198]
[1730729948721,0.48604,2462.1,2461.7,4.06219]
[1730729949813,0.48604,2462.1,2461.8,4.06205]
[1730729950810,0.48604,2462.1,2461.8,4.06195]
[1730729951343,4.54764,2462.1,2461.7,4.06221]
[1730729951503,4.54764,2462.1,2461.8,0.2311497]
[1730729951705,0.48604,2462.1,2461.8,4.06198]
[1730729952052,0.48604,2462.1,2461.8,8.12395]
[1730729952247,0.48604,2462.1,2461.9,0.23115524]
[1730729952416,0.48604,2462.1,2461.8,4.06197]
[1730729952618,0.48604,2462.1,2461.9,0.23125551]
[1730729952819,0.48604,2462.1,2461.8,4.06197]
[1730729953148,0.48604,2462.1,2461.9,0.23125667]
[1730729953334,0.48604,2462.1,2461.8,4.06197]
[1730729953515,0.48604,2462.1,2461.9,0.23143228]
[1730729953924,4.06193,2461.9,2461.6,0.42246757]
[1730729954117,4.06193,2461.9,2461.7,0.60175006]
[1730729954321,4.0619,2461.9,2461.8,0.23143526]
[1730729956902,4.0619,2461.9,2461.8,0.23180974]
[1730729957149,4.0619,2461.9,2461.8,0.60271259]
[1730729957350,4.950017,2461.9,2461.8,0.60271259]
[1730729957641,0.7574,2462.1,2461.8,4.66477259]
[1730729957844,4.81438,2462.4,2461.9,4.29356974]
[1730729958051,8.87556,2462.4,2462.0,4.66450512]
[1730729958215,4.06127,2462.3,2462.1,0.23180974]
[1730729958419,0.9359038,2462.3,2462.2,0.23180974]
[1730729959564,4.81435,2462.4,2462.2,0.23180974]
[1730729959742,4.81435,2462.4,2462.0,4.06165]
[1730729959947,4.81435,2462.4,2462.1,0.23187886]
[1730729960122,4.81435,2462.4,2462.2,0.23187886]
[1730729960456,0.7532,2462.4,2462.1,4.06155]
[1730729960668,0.7697,2462.7,2462.2,4.29321089]
[1730729960957,4.06077,2462.6,2462.3,0.23187089]
[1730729961157,4.83042,2462.7,2462.4,0.23187089]
[1730729961359,4.83042,2462.7,2462.5,0.23187089]
[1730729961360,4.06069,2462.7,2462.5,0.23187089]
[1730729961520,4.06019,2463.0,2462.6,4.85073]
[1730729961722,0.49033619,2462.9,2462.7,0.23183701]
[1730729961924,0.49033619,2462.9,2462.4,4.06094]
[1730729962218,4.55065619,2462.9,2462.5,0.60276914]
[1730729962420,4.55065619,2462.9,2462.6,0.23182742]
[1730729962663,0.49033619,2462.9,2462.7,0.23182742]
[1730729962955,8.11999,2463.1,2462.8,0.23173479]
[1730729963167,4.05993,2463.1,2462.6,0.37065402]
[1730729963356,4.06022,2463.0,2462.7,0.23163852]
[1730729963516,4.06022,2463.0,2462.6,4.06074]
[1730729963718,4.954955,2463.0,2462.6,4.06074]
[1730729963921,4.954955,2463.0,2462.7,0.23164329]
[1730729964227,4.954955,2463.0,2462.6,4.06074]
[1730729964420,4.954955,2463.0,2462.7,0.23156358]
[1730729964621,4.954955,2463.0,2462.6,4.06074]
[1730729964821,4.954955,2463.0,2462.7,0.23156465]
[1730729965021,0.894735,2463.0,2462.7,4.06056]
[1730729965222,4.05993,2463.1,2462.7,4.06056]
[1730729965461,4.9029819,2463.2,2462.8,4.06037]
[1730729965643,4.9027819,2463.3,2462.8,4.06037]
[1730729965846,4.05986,2463.2,2462.7,4.87075]
[1730729966031,4.06001,2463.1,2462.8,0.23147585]
[1730729966237,4.06001,2463.1,2462.7,4.87075]
[1730729966445,4.06001,2463.1,2462.8,0.23139861]
[1730729966648,0.89630419,2463.1,2462.7,0.8102]
[1730729966851,4.06033,2462.9,2462.5,4.86229]
[1730729967057,4.06033,2462.9,2462.6,0.23141552]
[1730729967268,4.06033,2462.9,2462.5,4.8624]
[1730729967593,4.06033,2462.9,2462.6,0.23136278]
[1730729967756,4.06033,2462.9,2462.5,4.8624]
[1730729968084,4.85799,2463.0,2462.6,0.23135948]
[1730729968281,4.85799,2463.0,2462.5,4.8624]
[1730729968481,4.85799,2463.0,2462.6,4.06074]
[1730729968834,4.95637419,2463.1,2462.6,4.06064]
[1730729969160,4.06007,2463.1,2462.7,4.06056]
[1730729969364,4.9029719,2463.2,2462.7,4.06056]
[1730729969565,4.9029719,2463.2,2462.7,8.12106]
[1730729969753,4.0598,2463.2,2462.7,8.12106]
[1730729970093,4.05986,2463.2,2462.7,4.0605]
[1730729970401,4.05992,2463.1,2462.6,4.06073]
[1730729970753,4.90337877,2463.1,2462.6,4.06073]
[1730729970954,4.06025,2463.0,2462.5,4.86231]
[1730729971161,4.06052,2462.8,2462.3,4.81281]
[1730729971391,4.06066,2462.7,2462.4,0.23124079]
[1730729971657,4.06066,2462.7,2462.4,0.23122805]
[1730729971986,4.06066,2462.7,2462.4,0.23122345]
[1730729972487,1.66755877,2462.9,2462.4,4.29226586]
[1730729972488,4.06044,2462.8,2462.4,4.29226586]
[1730729972656,4.06044,2462.8,2462.4,4.06106]
[1730729974067,0.8241,2462.9,2462.5,4.06082]
[1730729974254,4.06028,2462.9,2462.5,4.06082]
[1730729974456,4.06028,2462.9,2462.5,8.12166]
[1730729974712,4.90370877,2463.0,2462.5,8.12166]
[1730729974905,4.90363877,2463.0,2462.5,8.12166]